bitfinex/quotes_SOLUSD_20230701
["timestamp","ask_amount","ask_price","bid_price","bid_amount"]
[1688174246398,24.08196809,18.691,18.673,22.652]
[1688174246603,80.923,18.685,18.671,22.654]
[1688174246790,20.0,18.684,18.671,22.654]
[1688174246985,22.638,18.686,18.671,22.654]
[1688174247486,22.641,18.683,18.671,22.654]
[1688174247802,22.642,18.682,18.671,22.654]
[1688174247997,20.0,18.682,18.671,22.654]
[1688174248204,22.635,18.688,18.672,20.0]
[1688174248497,22.635,18.688,18.672,22.653]
[1688174248712,22.635,18.688,18.668,92.7166]
[1688174248886,20.0,18.687,18.67,22.655]
[1688174249087,22.642,18.682,18.669,22.657]
[1688174249803,58.28,18.686,18.669,22.657]
[1688174249804,22.641,18.683,18.669,22.657]
[1688174250191,20.0,18.682,18.669,22.657]
[1688174250489,42.643,18.682,18.67,55.0]
[1688174250690,42.643,18.682,18.668,58.333]
[1688174250896,42.643,18.682,18.667,22.659]
[1688174251098,11.96,18.68,18.653,38.02965098]
[1688174251285,187.387,18.673,18.655,22.674]
[1688174251485,22.66,18.667,18.655,22.674]
[1688174251685,106.39,18.677,18.655,22.674]
[1688174251889,22.655,18.672,18.655,22.674]
[1688174252101,20.0,18.671,18.663,22.664]
[1688174252301,42.655,18.671,18.663,22.664]
[1688174252488,42.655,18.671,18.66,22.667]
[1688174253085,100.979,18.671,18.66,22.667]
[1688174253999,58.324,18.671,18.664,22.663]
[1688174254202,22.655,18.671,18.665,55.0]
[1688174254586,58.303,18.679,18.665,22.662]
[1688174254783,22.651,18.674,18.666,77.66]
[1688174254988,20.0,18.673,18.667,55.0]
[1688174255301,20.0,18.673,18.66,22.668]
[1688174255302,42.653,18.673,18.66,22.668]
[1688174255491,22.653,18.673,18.66,22.668]
[1688174255699,22.651,18.675,18.66,22.668]
[1688174256201,20.0,18.674,18.66,22.668]
[1688174256403,22.656,18.67,18.66,22.668]
[1688174257790,22.656,18.67,18.651,92.2843]
[1688174257992,45.312,18.67,18.654,22.675]
[1688174258307,20.0,18.669,18.654,22.675]
[1688174258492,22.663,18.665,18.654,22.675]
[1688174258686,20.0,18.664,18.654,22.675]
[1688174258905,22.666,18.662,18.654,22.675]
[1688174259110,20.0,18.661,18.654,22.675]
[1688174259299,42.668,18.661,18.654,22.675]
[1688174260286,22.668,18.661,18.654,22.675]
[1688174260491,22.668,18.661,18.641,106.591]
[1688174260788,22.668,18.661,18.642,42.689]
[1688174261410,22.668,18.661,18.642,22.689]
[1688174261601,187.602,18.651,18.636,22.697]
[1688174261805,187.602,18.651,18.633,22.701]
[1688174262196,22.68,18.651,18.633,22.701]
[1688174262390,47.28318671,18.668,18.634,3.0]
[1688174262599,22.669,18.66,18.647,81.083]
[1688174262795,22.669,18.66,18.641,106.59]
[1688174263000,22.678,18.653,18.643,22.688]
[1688174263202,81.06,18.653,18.634,58.44]
[1688174263391,22.685,18.647,18.638,22.694]
[1688174263720,22.685,18.647,18.636,22.697]
[1688174263911,22.692,18.641,18.625,106.68]
[1688174264509,81.111,18.641,18.622,53.02]
[1688174264710,81.111,18.641,18.623,22.713]
[1688174264898,22.692,18.641,18.623,22.713]
[1688174265098,20.0,18.646,18.623,22.713]
[1688174265294,22.69,18.643,18.623,22.713]
[1688174265911,22.698,18.636,18.617,58.493]
[1688174266110,20.0,18.642,18.61,11.95]
[1688174266111,22.707,18.629,18.61,11.95]
[1688174266696,22.707,18.629,18.61,34.679]
[1688174266892,22.704,18.631,18.616,22.721]
[1688174267113,11.96,18.64,18.616,22.721]
[1688174267296,11.96,18.64,18.611,20.0]
[1688174267297,42.691,18.642,18.626,22.709]
[1688174267497,22.691,18.642,18.626,22.709]
[1688174267807,22.688,18.644,18.626,22.709]
[1688174268114,58.405,18.642,18.631,81.152]
[1688174268315,58.405,18.642,18.635,22.699]
[1688174268492,58.405,18.642,18.636,55.0]
[1688174268697,58.405,18.642,18.631,22.703]
[1688174268900,22.691,18.642,18.62,11.96]
[1688174269308,22.691,18.642,18.61,11.96]
[1688174269522,22.691,18.642,18.611,20.0]
[1688174270014,22.702,18.632,18.611,42.727]
[1688174270514,22.702,18.632,18.62,11.96]
[1688174270722,98.9518,18.644,18.621,22.715]
[1688174271011,22.692,18.641,18.628,22.707]
[1688174271230,22.692,18.641,18.629,55.0]
[1688174271594,106.509,18.656,18.629,77.705]
[1688174271823,22.685,18.647,18.629,77.705]
[1688174272113,55.0,18.641,18.629,77.705]
[1688174272916,55.0,18.641,18.63,11.95]
[1688174273213,22.684,18.648,18.633,22.701]
[1688174273510,22.689,18.643,18.634,55.0]
[1688174273715,22.689,18.643,18.629,55.0]
[1688174274013,22.681,18.65,18.63,93.118]
[1688174274214,95.0611,18.658,18.631,55.0]
[1688174274415,22.678,18.652,18.639,22.694]
[1688174274615,22.678,18.652,18.64,55.0]
[1688174274823,22.674,18.656,18.64,77.692]
[1688174274997,11.96,18.67,18.64,89.652]
[1688174274998,22.668,18.661,18.64,89.652]
[1688174275198,26.27945146,18.665,18.641,20.0]
[1688174275403,22.658,18.669,18.65,11.96]
[1688174275598,90.2308,18.678,18.651,20.0]
[1688174275810,260.92537798,18.696,18.651,75.0]
[1688174275811,11.96,18.69,18.651,75.0]
[1688174276113,11.85,18.68,18.651,75.0]
[1688174276315,3.0,18.679,18.651,55.0]
[1688174276615,22.655,18.672,18.651,77.679]
[1688174277017,20.0,18.671,18.651,77.679]
[1688174277217,22.66,18.667,18.651,77.679]
[1688174277523,20.0,18.666,18.651,77.679]
[1688174277819,42.662,18.666,18.651,77.679]
[1688174278205,42.662,18.666,18.651,55.0]
[1688174278504,42.662,18.666,18.64,11.96]
[1688174278704,42.662,18.666,18.641,20.0]
[1688174279117,11.84,18.66,18.631,58.45]
[1688174279418,22.679,18.652,18.632,22.76847882]
[1688174279726,11.85,18.65,18.633,22.701]
[1688174280012,20.0,18.649,18.633,22.701]
[1688174280216,20.0,18.649,18.62,12.03]
[1688174280421,22.685,18.647,18.627,22.708]
[1688174280918,20.0,18.646,18.62,58.483]
[1688174281118,81.12,18.639,18.619,22.718]
[1688174281320,20.0,18.638,18.617,22.72]
[1688174281508,22.703,18.632,18.618,22.718]
[1688174281719,106.552,18.649,18.618,22.718]
[1688174281906,22.692,18.641,18.62,12.0]
[1688174282221,81.111,18.641,18.62,22.716]
[1688174282419,20.0,18.64,18.618,22.719]
[1688174282624,22.701,18.634,18.606,58.527]
[1688174282922,22.701,18.634,18.604,106.8]
[1688174282923,20.0,18.633,18.604,106.8]
[1688174283223,22.706,18.629,18.612,22.726]
[1688174283809,45.412,18.629,18.612,22.726]
[1688174284209,22.706,18.629,18.612,22.726]
[1688174284718,164.968,18.646,18.612,36.56319922]
[1688174285017,22.692,18.641,18.613,23.26534922]
[1688174285223,22.692,18.641,18.621,22.715]
[1688174285528,22.692,18.641,18.622,55.0]
[1688174285830,164.881,18.656,18.627,22.708]
[1688174286021,22.679,18.652,18.635,22.698]
[1688174286236,58.361,18.66,18.64,22.692]
[1688174286523,22.676,18.654,18.641,55.0]
[1688174286735,22.676,18.654,18.641,77.69]
[1688174287022,55.0,18.654,18.641,77.69]
[1688174287224,55.0,18.654,18.641,184.282]
[1688174287409,22.66,18.667,18.642,23.0]
[1688174287611,22.655,18.671,18.65,187.604]
[1688174287825,164.697,18.677,18.651,20.0]
[1688174287826,58.308,18.677,18.651,20.0]
[1688174288014,22.656,18.671,18.658,22.67]
[1688174288215,22.656,18.671,18.659,55.0]
[1688174288513,58.292,18.682,18.661,22.667]
[1688174288724,22.649,18.677,18.662,55.0]
[1688174289029,22.649,18.677,18.662,77.665]
[1688174289328,22.649,18.677,18.662,77.666]
[1688174289510,58.277,18.687,18.662,77.666]
[1688174290219,22.641,18.683,18.662,77.666]
[1688174290817,58.285,18.683,18.662,136.019]
[1688174291017,106.317,18.69,18.662,136.019]
[1688174291228,22.641,18.683,18.662,136.019]
[1688174292130,106.311,18.691,18.662,136.019]
[1688174292631,27.98178088,18.695,18.662,136.019]
[1688174292820,106.311,18.691,18.662,136.019]
[1688174293024,106.311,18.691,18.663,12.39486]
[1688174293224,106.311,18.691,18.671,187.397]
[1688174293225,128.943,18.691,18.671,187.397]
[1688174293527,58.237,18.7,18.672,55.0]
[1688174293712,22.629,18.693,18.68,22.644]
[1688174293915,22.628,18.694,18.685,22.638]
[1688174294116,42.629,18.693,18.684,22.639]
[1688174294317,42.629,18.693,18.685,77.637]
[1688174294531,37.629,18.693,18.685,55.0]
[1688174294724,37.629,18.693,18.683,22.639]
[1688174294725,37.629,18.693,18.684,55.0]
[1688174294928,95.866,18.693,18.684,55.0]
[1688174295733,73.237,18.693,18.684,22.638]
[1688174295927,15.0,18.693,18.685,55.0]
[1688174296234,22.622,18.699,18.686,22.637]
[1688174296433,22.622,18.699,18.687,55.0]
[1688174297235,22.622,18.699,18.684,22.639]
[1688174297428,22.622,18.699,18.684,80.924]
[1688174297929,22.619,18.701,18.684,80.924]
[1688174298134,58.225,18.702,18.684,80.924]
[1688174298328,22.611,18.708,18.684,80.924]
[1688174298530,22.611,18.708,18.685,55.0]
[1688174298728,22.611,18.708,18.691,22.63]
[1688174298932,22.611,18.708,18.692,55.0]
[1688174299235,22.611,18.708,18.695,22.625]
[1688174299537,22.611,18.708,18.696,55.0]
[1688174299743,22.611,18.708,18.699,22.62]
[1688174299928,22.611,18.708,18.7,55.0]
[1688174300440,22.611,18.708,18.695,22.625]
[1688174300628,22.611,18.708,18.7,55.0]
[1688174300830,22.609,18.71,18.7,77.62]
[1688174301041,22.609,18.71,18.701,55.0]
[1688174301224,22.609,18.71,18.702,22.617]
[1688174301545,58.167,18.722,18.703,55.0]
[1688174301720,55.0,18.714,18.708,22.609]
[1688174301925,55.0,18.714,18.703,55.0]
[1688174301926,20.0,18.713,18.703,55.0]
[1688174302221,55.0,18.714,18.709,55.0]
[1688174302430,58.17,18.721,18.703,55.0]
[1688174302633,80.786,18.716,18.703,22.615]
[1688174302834,20.0,18.715,18.704,55.0]
[1688174303134,22.604,18.713,18.705,22.613]
[1688174303331,22.604,18.713,18.706,55.0]
[1688174303541,22.604,18.713,18.704,55.0]
[1688174303719,20.104,18.713,18.704,55.0]
[1688174304438,20.104,18.713,18.704,77.614]
[1688174304742,20.104,18.713,18.704,55.0]
[1688174305240,22.608,18.711,18.704,55.0]
[1688174305420,22.608,18.711,18.688,106.321]
[1688174305619,19.5,18.715,18.694,80.88]
[1688174305826,58.186,18.716,18.694,80.88]
[1688174306038,22.606,18.712,18.694,80.88]
[1688174306228,22.604,18.713,18.694,80.88]
[1688174306440,20.0,18.712,18.694,80.88]
[1688174306820,22.606,18.712,18.695,55.0]
[1688174307338,22.606,18.712,18.698,22.622]
[1688174307522,22.606,18.712,18.693,164.547]
[1688174307725,22.606,18.712,18.686,58.276]
[1688174308041,187.082,18.703,18.689,22.633]
[1688174308533,22.622,18.699,18.689,22.633]
[1688174308842,22.622,18.699,18.676,58.307]
[1688174309033,22.622,18.699,18.669,106.428]
[1688174309034,20.0,18.698,18.669,106.428]
[1688174309232,199.228,18.69,18.664,106.458]
[1688174309435,199.228,18.69,18.669,22.657]
[1688174309738,22.633,18.69,18.669,22.657]
[1688174311941,22.633,18.69,18.67,20.0]
[1688174312239,22.633,18.69,18.676,22.649]
[1688174312944,58.234,18.699,18.677,20.0]
[1688174313147,22.624,18.697,18.683,187.279]
[1688174313447,80.856,18.699,18.684,55.0]
[1688174313641,58.234,18.699,18.688,80.905]
[1688174313939,22.618,18.702,18.692,22.628]
[1688174314233,22.618,18.702,18.689,55.0]
[1688174314234,58.234,18.702,18.695,22.625]
[1688174314437,22.61,18.708,18.695,22.625]
[1688174314636,27.95543534,18.714,18.699,22.62]
[1688174314840,22.609,18.71,18.699,22.62]
[1688174315025,22.609,18.71,18.702,22.616]
[1688174315222,22.609,18.71,18.703,55.0]
[1688174315426,20.0,18.713,18.703,77.616]
[1688174315643,22.606,18.712,18.703,77.616]
[1688174316026,22.606,18.712,18.703,55.0]
[1688174317044,22.606,18.712,18.703,77.616]
[1688174317226,20.0,18.713,18.703,77.616]
[1688174317430,42.605,18.713,18.703,77.616]
[1688174317737,42.605,18.713,18.693,106.295]
[1688174318044,42.605,18.713,18.693,22.628]
[1688174319038,42.605,18.713,18.694,55.0]
[1688174319234,42.605,18.713,18.696,22.624]
[1688174319537,42.605,18.713,18.696,80.871]
[1688174320437,42.605,18.713,18.696,22.624]
[1688174320741,42.605,18.713,18.7,22.619]
[1688174320932,42.605,18.713,18.701,55.0]
[1688174321127,42.605,18.713,18.701,77.618]
[1688174322848,42.605,18.713,18.701,22.618]
[1688174323039,42.605,18.713,18.699,22.62]
[1688174324849,42.605,18.713,18.7,55.0]
[1688174325035,42.605,18.713,18.7,77.619]
[1688174329046,42.605,18.713,18.697,22.623]
[1688174329536,58.19,18.714,18.697,22.623]
[1688174329736,58.164,18.723,18.697,22.623]
[1688174329951,410.4,18.73,18.697,22.623]
[1688174330145,22.596,18.72,18.697,22.623]
[1688174330936,22.601,18.716,18.697,22.623]
[1688174331133,20.0,18.719,18.697,22.623]
[1688174331134,20.0,18.715,18.697,22.623]
[1688174331344,22.602,18.715,18.697,22.623]
[1688174331656,42.604,18.714,18.697,22.623]
[1688174332145,106.132,18.722,18.698,55.0]
[1688174332353,58.175,18.72,18.705,22.614]
[1688174332531,22.599,18.717,18.706,55.0]
[1688174332737,22.599,18.717,18.707,22.611]
[1688174332937,22.599,18.717,18.708,55.0]
[1688174333144,22.599,18.717,18.708,77.609]
[1688174333449,20.0,18.716,18.702,58.228]
[1688174333651,22.606,18.712,18.704,22.614]
[1688174333851,22.603,18.714,18.704,22.614]
[1688174334053,160.2,18.735,18.704,22.614]
[1688174334237,22.597,18.72,18.704,22.614]
[1688174334734,22.597,18.72,18.709,22.609]
[1688174334936,22.597,18.72,18.71,55.0]
[1688174335458,77.597,18.72,18.71,55.0]
[1688174335634,77.597,18.72,18.652,27.73016985]
[1688174335635,5.5261145,18.719,18.701,58.231]
[1688174335835,22.604,18.713,18.701,80.85]
[1688174336131,58.185,18.717,18.701,80.85]
[1688174336132,42.606,18.712,18.701,80.85]
[1688174336944,20.0,18.712,18.702,55.0]
[1688174337137,20.0,18.712,18.705,22.614]
[1688174337338,42.606,18.712,18.706,55.0]
[1688174338035,42.606,18.712,18.697,58.243]
[1688174338235,42.606,18.712,18.702,22.617]
[1688174339955,20.0,18.712,18.702,22.617]
[1688174340255,22.604,18.713,18.703,55.0]
[1688174340453,20.0,18.712,18.698,22.621]
[1688174340658,22.61,18.708,18.692,58.257]
[1688174340840,22.61,18.708,18.696,22.625]
[1688174342139,22.61,18.708,18.7,22.619]
[1688174342340,22.61,18.708,18.701,77.618]
[1688174342642,22.61,18.708,18.702,55.0]
[1688174343155,22.61,18.708,18.696,22.624]
[1688174343358,116.465,18.709,18.688,58.271]
[1688174343359,22.617,18.703,18.688,58.271]
[1688174343539,22.617,18.703,18.691,22.63]
[1688174343745,22.621,18.699,18.691,22.63]
[1688174344343,22.621,18.699,18.688,22.633]
[1688174344543,20.0,18.698,18.676,106.388]
[1688174344757,80.883,18.694,18.677,58.306]
[1688174344939,22.634,18.689,18.681,22.643]
[1688174346047,58.262,18.69,18.681,22.643]
[1688174346242,22.631,18.692,18.681,22.643]
[1688174346758,22.631,18.692,18.671,106.419]
[1688174346960,11.87,18.7,18.667,164.775]
[1688174346961,187.276,18.684,18.667,164.775]
[1688174347157,80.927,18.684,18.671,22.654]
[1688174347359,106.326,18.688,18.671,22.654]
[1688174347360,42.641,18.683,18.671,22.654]
[1688174348055,42.641,18.683,18.666,164.786]
[1688174348241,22.638,18.686,18.67,11.95]
[1688174348449,22.636,18.687,18.676,80.958]
[1688174349443,22.636,18.687,18.679,22.644]
[1688174349648,22.636,18.687,18.676,58.309]
[1688174349649,22.636,18.687,18.676,22.648]
[1688174349855,22.636,18.687,18.675,22.65]
[1688174351044,58.286,18.688,18.675,22.65]
[1688174351250,22.634,18.689,18.679,22.645]
[1688174351555,22.634,18.689,18.682,22.641]
[1688174351752,22.634,18.689,18.683,55.0]
[1688174352552,80.938,18.689,18.683,55.0]
[1688174353072,22.632,18.691,18.683,77.64]
[1688174353448,58.255,18.691,18.683,77.64]
[1688174353649,80.886,18.691,18.683,77.64]
[1688174353850,80.886,18.691,18.677,58.305]
[1688174354051,80.886,18.691,18.67,58.327]
[1688174354265,90.87160821,18.691,18.671,20.0]
[1688174354467,9.98560821,18.69,18.674,22.65]
[1688174354773,80.887,18.691,18.674,22.65]
[1688174356755,90.87260821,18.691,18.674,22.65]
[1688174356964,20.0,18.69,18.674,22.65]
[1688174357168,22.638,18.686,18.664,106.456]
[1688174357361,20.0,18.685,18.668,22.658]
[1688174357668,92.891,18.68,18.657,58.367]
[1688174358056,187.382,18.673,18.659,22.668]
[1688174358258,22.66,18.667,18.65,11.95]
[1688174358454,81.031,18.66,18.644,10.83719922]
[1688174358663,81.031,18.66,18.647,22.683]
[1688174359161,95.5052,18.669,18.647,81.083]
[1688174359463,58.323,18.672,18.65,11.95]
[1688174359772,22.658,18.669,18.656,81.042]
[1688174359971,22.658,18.669,18.656,22.672]
[1688174360171,22.658,18.669,18.65,58.389]
[1688174360366,20.0,18.668,18.654,22.676]
[1688174360861,106.419,18.672,18.654,22.676]
[1688174361058,106.419,18.672,18.654,129.194]
[1688174361059,22.659,18.669,18.654,129.194]
[1688174361261,22.655,18.672,18.654,129.194]
[1688174361465,22.654,18.672,18.655,55.0]
[1688174361666,22.654,18.672,18.66,81.027]
[1688174361977,22.654,18.672,18.661,55.0]
[1688174362366,80.965,18.672,18.661,77.667]
[1688174362967,58.311,18.672,18.661,77.667]
[1688174363165,22.651,18.675,18.662,20.0]
[1688174363365,22.651,18.675,18.665,22.661]
[1688174363675,22.651,18.675,18.666,55.0]
[1688174363874,22.651,18.675,18.668,22.658]
[1688174364078,22.651,18.675,18.666,55.0]
[1688174364376,58.308,18.677,18.666,55.0]
[1688174364570,22.65,18.676,18.666,77.661]
[1688174364762,22.648,18.678,18.666,77.661]
[1688174366182,100.309,18.678,18.666,136.002]
[1688174366785,22.648,18.678,18.666,136.002]
[1688174367176,22.645,18.68,18.666,136.002]
[1688174367685,80.935,18.68,18.666,136.002]
[1688174369468,80.935,18.68,18.666,81.002]
[1688174370182,80.935,18.68,18.661,106.474]
[1688174370368,80.968,18.674,18.657,164.866]
[1688174370568,22.657,18.67,18.657,58.369]
[1688174370974,22.657,18.67,18.658,22.67]
[1688174371584,22.657,18.67,18.653,164.899]
[1688174371879,20.0,18.669,18.651,22.678]
[1688174372187,81.012,18.664,18.647,22.683]
[1688174372485,11.95,18.66,18.642,22.689]
[1688174372671,187.566,18.655,18.642,22.689]
[1688174373185,20.0,18.654,18.642,22.689]
[1688174373371,187.609,18.651,18.64,22.692]
[1688174373682,22.678,18.653,18.64,22.692]
[1688174373978,58.435,18.651,18.64,22.692]
[1688174374185,22.672,18.657,18.64,34.642]
[1688174374480,22.672,18.657,18.641,20.0]
[1688174374662,22.672,18.657,18.645,22.686]
[1688174374868,22.677,18.653,18.639,58.423]
[1688174375082,22.677,18.653,18.642,22.689]
[1688174375272,58.376,18.655,18.642,22.689]
[1688174375273,22.675,18.655,18.642,22.689]
[1688174376186,22.683,18.649,18.634,58.44]
[1688174376577,22.683,18.649,18.631,106.645]
[1688174376578,22.683,18.649,18.635,22.698]
[1688174377466,46.13820339,18.667,18.635,22.698]
[1688174377672,58.394,18.655,18.636,0.83483124]
[1688174377969,98.3116,18.668,18.645,22.687]
[1688174378173,22.675,18.655,18.641,58.417]
[1688174378381,20.0,18.654,18.645,22.686]
[1688174378575,22.677,18.653,18.644,22.687]
[1688174378777,20.0,18.652,18.644,22.687]
[1688174378979,58.356,18.662,18.644,22.687]
[1688174379490,22.669,18.66,18.644,22.687]
[1688174379791,20.0,18.659,18.634,106.63]
[1688174379974,187.597,18.652,18.637,22.695]
[1688174380291,187.597,18.652,18.631,22.703]
[1688174380475,81.098,18.644,18.63,22.705]
[1688174380675,20.0,18.651,18.63,22.705]
[1688174380676,20.0,18.643,18.63,22.705]
[1688174381290,42.689,18.643,18.63,22.705]
[1688174381582,107.38135,18.645,18.63,22.705]
[1688174381893,107.38135,18.645,18.635,187.761]
[1688174382196,22.678,18.652,18.635,187.761]
[1688174382380,22.678,18.652,18.636,146.1074]
[1688174382580,22.677,18.654,18.64,81.112]
[1688174382881,42.677,18.653,18.644,22.687]
[1688174383073,20.0,18.653,18.647,22.684]
[1688174383269,58.354,18.662,18.647,22.684]
[1688174383495,22.671,18.658,18.65,22.679]
[1688174383676,22.67,18.659,18.651,77.678]
[1688174383880,77.67,18.659,18.651,22.678]
[1688174384178,55.0,18.659,18.651,22.678]
[1688174384575,58.345,18.665,18.652,55.0]
[1688174384780,22.668,18.66,18.653,22.676]
[1688174384979,22.668,18.66,18.654,55.0]
[1688174385301,22.666,18.663,18.654,77.676]
[1688174385483,77.663,18.665,18.654,77.676]
[1688174385682,22.666,18.662,18.654,77.676]
[1688174386095,22.666,18.662,18.654,55.0]
[1688174386594,22.666,18.662,18.649,22.681]
[1688174386792,22.666,18.662,18.646,58.402]
[1688174386996,22.666,18.662,18.649,22.681]
[1688174387401,55.0,18.665,18.649,22.681]
[1688174387588,96.5946,18.677,18.65,20.0]
[1688174387782,22.662,18.666,18.658,22.671]
[1688174387977,22.662,18.666,18.659,55.0]
[1688174388190,22.662,18.666,18.659,77.669]
[1688174388498,107.245485,18.669,18.659,77.669]
[1688174388699,202.9856,18.677,18.659,77.669]
[1688174388896,22.655,18.671,18.659,22.669]
[1688174389292,22.655,18.671,18.66,55.0]
[1688174389600,22.655,18.671,18.66,77.667]
[1688174390291,22.654,18.673,18.66,77.667]
[1688174390801,22.651,18.675,18.66,77.667]
[1688174390998,22.654,18.673,18.66,77.667]
[1688174391492,45.307,18.673,18.66,77.667]
[1688174392100,45.307,18.673,18.66,22.667]
[1688174392484,45.307,18.673,18.656,58.37]
[1688174392697,45.307,18.673,18.66,22.668]
[1688174393891,45.307,18.673,18.661,55.0]
[1688174394093,45.307,18.673,18.662,22.665]
[1688174394399,45.307,18.673,18.665,22.662]
[1688174394600,45.307,18.673,18.666,55.0]
[1688174394796,45.307,18.673,18.66,22.667]
[1688174394997,45.307,18.673,18.656,58.371]
[1688174395305,45.307,18.673,18.646,91.9012]
[1688174395506,11.97,18.67,18.644,58.408]
[1688174395798,11.97,18.67,18.638,58.428]
[1688174395799,187.49,18.663,18.638,58.428]
[1688174396187,187.565,18.655,18.641,22.691]
[1688174396382,187.565,18.655,18.636,106.617]
[1688174396383,20.0,18.654,18.64,22.693]
[1688174396587,20.0,18.654,18.632,22.702]
[1688174396588,81.083,18.648,18.632,22.702]
[1688174396787,81.083,18.648,18.632,129.346]
[1688174397001,22.684,18.648,18.632,129.346]
[1688174398097,22.682,18.649,18.632,129.346]
[1688174398503,22.681,18.65,18.633,55.0]
[1688174398704,22.681,18.65,18.638,81.123]
[1688174398912,22.681,18.65,18.639,55.0]
[1688174399206,58.39,18.651,18.642,22.69]
[1688174399398,22.677,18.653,18.646,22.685]
[1688174399598,22.677,18.653,18.647,77.684]
[1688174399913,106.458,18.665,18.647,77.684]
[1688174400093,22.677,18.657,18.647,77.684]
[1688174400298,22.676,18.654,18.647,55.0]
[1688174400809,22.676,18.654,18.634,200.401]
[1688174400994,20.0,18.653,18.636,22.697]
[1688174401193,22.683,18.648,18.636,22.697]
[1688174401793,22.668,18.66,18.636,22.697]
[1688174402002,99.7845,18.673,18.64,11.93]
[1688174402313,22.662,18.666,18.649,187.614]
[1688174402513,22.66,18.667,18.65,115.9382]
[1688174402714,22.66,18.667,18.649,187.614]
[1688174402715,22.661,18.666,18.655,22.674]
[1688174402908,22.661,18.666,18.656,55.0]
[1688174403207,22.661,18.666,18.656,77.673]
[1688174403410,22.661,18.666,18.656,55.0]
[1688174404109,20.0,18.665,18.656,55.0]
[1688174404302,22.666,18.663,18.656,55.0]